[Event "EYCC O18-ch 2024"]
[Site "Prague"]
[Date "2024.08.26"]
[Round "5.6"]
[White "Shamatava, Nikolozi"]
[Black "Falkevall, Axel"]
[Result "1-0"]
[ECO "C79"]
[WhiteElo "2196"]
[BlackElo "2325"]
[Annotator "RC"]
[PlyCount "97"]
[EventDate "2024.08.19"]
[EventType "swiss"]
[EventCountry "CZE"]
[SourceTitle "playchess.com"]
[Source "ChessBase"]
[SourceQuality "1"]
[TimeControl "5400+30"]

1. e4 {[%emt 0:00:05]} e5 {[%emt 0:00:07]} 2. Nf3 {[%emt 0:00:05]} Nc6 {[%emt 0:00:04]} 3. Bb5 {[%emt 0:00:07]} a6 {[%emt 0:00:05]} 4. Ba4 {[%emt 0:00:04]} Nf6 {[%emt 0:00:24]} 5. O-O {[%emt 0:00:07]} d6 {[%emt 0:00:39]} 6. Re1 {[%emt 0:00:45]} Bd7 {[%emt 0:00:13]} 7. c4 {[%emt 0:00:07]} Bg4 {[%emt 0:01:54]} 8. Nc3 {[%emt 0:03:14]} Nd7 {[%emt 0:02:43]} 9. h3 {[%emt 0:01:28]} Bxf3 {[%emt 0:01:00]} 10. Qxf3 {[%emt 0:00:09]} g6 {[%emt 0:04:00]} 11. Bxc6 {[%emt 0:13:39]} bxc6 {[%emt 0:00:13]} 12. d4 {[%emt 0:00:06]} Bg7 {[%emt 0:06:01]} 13. dxe5 {[%emt 0:02:25]} Nxe5 {[%emt 0:01:45]} 14. Qe2 {[%emt 0:00:16]} c5 {[%emt 0:02:22]} 15. Bf4 {[%emt 0:05:28]} O-O {[%emt 0:03:05]} 16. Rad1 {[%emt 0:00:20]} Re8 {[%emt 0:03:11]} 17. b3 {[%emt 0:04:04]} Nc6 {[%emt 0:06:31]} 18. Qd2 {[%emt 0:03:50]} Nd4 {[%emt 0:07:38]} 19. Kh1 {[%emt 0:10:32]} a5 {[%emt 0:04:38]} 20. Qc1 {[%emt 0:03:15]} c6 {[%emt 0:10:40]} 21. Bg3 {[%emt 0:08:28]} Re6 {[%emt 0:03:53]} 22. f4 {[%emt 0:06:59]} Qe7 {[%emt 0:03:40]} 23. Rd3 {[%emt 0:03:34]} Re8 {[%emt 0:02:03]} 24. Bf2 {[%emt 0:01:07]} f5 {[%emt 0:07:07]} 25. Rde3 {[%emt 0:00:58]} Qf7 {[%emt 0:04:14]} 26. Qd2 {[%emt 0:06:13]} h5 {[%emt 0:12:01]} 27. exf5 {[%emt 0:06:01]} Qxf5 {[%emt 0:00:26]} 28. Rxe6 {[%emt 0:00:59]} Rxe6 {[%emt 0:00:30]} 29. Rxe6 {[%emt 0:00:10]} Nxe6 {[%emt 0:04:16]} 30. Ne2 {[%emt 0:00:26]} Qe4 {[%emt 0:00:26]} 31. Qe3 {[%emt 0:02:48]} Qb1+ {[%emt 0:01:27]} 32. Kh2 {[%emt 0:00:01]} Kf7 {[%emt 0:01:40]} 33. Qf3 {[%emt 0:00:19]} Qc2 {[%emt 0:01:01]} 34. Ng3 {[%emt 0:03:38]} Bd4 {[%emt 0:02:42]} 35. Ne4 {[%emt 0:04:22]} Bxf2 {[%emt 0:00:28]} 36. f5 {[%emt 0:00:11]} Bh4 {[%emt 0:03:13]} 37. Nxd6+ {[%emt 0:01:00]} Ke7 {[%emt 0:00:08]} 38. Nc8+ {[%emt 0:00:18]} Kd7 {[%emt 0:00:19]} 39. fxe6+ {[%emt 0:00:35]} Kxc8 {[%emt 0:00:05]} 40. Qxc6+ {[%emt 0:00:27]} Kb8 {[%emt 0:00:01]} 41. Qb6+ {[%emt 0:00:17]} Kc8 {[%emt 0:00:09]} 42. Qxc5+ {[%emt 0:00:16]} Kb8 {[%emt 0:00:57]} 43. Qb6+ {[%emt 0:01:03]} Kc8 {[%emt 0:00:04]} 44. Qc6+ {[%emt 0:00:18]} Kb8 {[%emt 0:00:01]} 45. e7 {[%emt 0:00:23]} Bxe7 {[%emt 0:00:10]} 46. Qe8+ {[%emt 0:00:04]} Kc7 {[%emt 0:00:07]} 47. Qxe7+ {[%emt 0:00:04]} Kc8 {[%emt 0:00:03]} 48. c5 {[%emt 0:00:25]} Qf2 {[%emt 0:00:24]} 49. Qd6 {[%emt 0:00:16]} 1-0

[Event "EYCC O18-ch 2024"]
[Site "Prague"]
[Date "2024.08.26"]
[Round "5.7"]
[White "Smolik, Jachym"]
[Black "Klimkowski, Jan"]
[Result "1-0"]
[ECO "D31"]
[WhiteElo "2290"]
[BlackElo "2508"]
[Annotator "TA"]
[PlyCount "111"]
[EventDate "2024.08.19"]
[EventType "swiss"]
[EventCountry "CZE"]
[SourceTitle "playchess.com"]
[Source "ChessBase"]
[SourceQuality "1"]
[TimeControl "5400+30"]

{[%evp 15,111,-26,-10,-37,-30,-54,-44,-27,-26,-92,-104,-129,-119,-200,-202,-220,-210,-229,-231,-183,-138,-149,-136,-146,-137,-153,-133,-151,-163,-138,-104,-103,-116,-147,-130,-145,-124,-121,-111,-102,-116,-101,-96,-98,-102,-355,8,15,6,11,20,12,33,29,39,13,14,8,17,0,0,0,28,42,45,10,10,8,8,43,45,64,51,0,0,0,61,80,399,404,1041,944,1860,1677,1865,798,5019,4642,12837,6190,29972,29976,29980,29981,29981,29982,29982,29980]} 1. c4 {[%emt 0:00:01]} e6 {[%emt 0:00:28]} 2. Nc3 {[%emt 0:00:13]} d5 {[%emt 0:00:05]} 3. d4 {[%emt 0:00:44]} c6 {[%emt 0:00:04]} 4. e3 {[%emt 0:00:47]} Nf6 {[%emt 0:00:05]} 5. b3 {[%emt 0:03:12]} Bb4 {[%emt 0:03:46]} 6. Bd2 {[%emt 0:00:11] D31: Queen's Gambit Declined: Semi-Slav without ...Nf6 (+ Marshall Gambit and Noteboom) and Exchange Variation lines without ...Nf6.} O-O {[%emt 0:01:27]} 7. a3 $146 {[%emt 0:01:32]} ({Predecessor:} 7. Qc2 Nbd7 8. a3 Be7 9. Nf3 b6 10. cxd5 cxd5 11. Bd3 Bb7 12. O-O Rc8 13. Rfc1 {½-½ Dzagnidze,N (2524)-Goryachkina,A (2604) EU-chT (Women) 23rd 2021 (4.1)}) 7... Bd6 {[%emt 0:01:39]} 8. Nf3 {[%emt 0:05:27]} Qe7 {[%emt 0:02:09]} 9. b4 {[%emt 0:17:38]} Nbd7 {[%emt 0:06:24]} 10. Qb3 {[%emt 0:00:58]} dxc4 {[%emt 0:09:02]} 11. Bxc4 {[%emt 0:00:15]} e5 {[%emt 0:00:14]} 12. Be2 {[%emt 0:07:20]} (12. Qc2 $1 $11) 12... e4 $17 {[%emt 0:02:00]} 13. Nh4 {[%emt 0:06:35]} Nb6 {[%emt 0:02:46]} 14. g3 {[%emt 0:03:53]} (14. f3 $17) 14... Bh3 $19 {[%emt 0:05:25]} 15. Bf1 {[%emt 0:00:50]} Qd7 {[%emt 0:04:12]} 16. Bxh3 {[%emt 0:05:11]} Qxh3 {[%emt 0:00:06]} 17. Ne2 {[%emt 0:00:04]} Nfd5 {[%emt 0:03:15]} 18. Qc2 {[%emt 0:03:04]} Rfe8 {[%emt 0:03:03]} 19. Ng1 {[%emt 0:00:28]} Qe6 {[%emt 0:00:12]} 20. Ng2 {[%emt 0:00:15]} Nd7 {[%emt 0:06:13]} 21. Nf4 {[%emt 0:01:51]} Bxf4 {[%emt 0:05:02]} 22. gxf4 {[%emt 0:00:34]} b6 {[%emt 0:04:58]} 23. Ne2 {[%emt 0:00:32]} Rac8 {[%emt 0:00:27]} 24. Ng3 {[%emt 0:03:46]} c5 {[%emt 0:03:17]} 25. f5 {[%emt 0:11:59]} Qe7 {[%emt 0:01:42]} 26. Qc4 {[%emt 0:00:58]} N5f6 {[%emt 0:04:01]} 27. Bc3 {[%emt 0:05:46]} cxd4 {[%emt 0:06:42]} 28. Qxd4 {[%emt 0:00:01]} h5 {[%emt 0:01:49]} 29. h4 {[%emt 0:04:05]} Rcd8 {[%emt 0:02:53]} 30. Rg1 $2 {[%emt 0:02:10][%mdl 8192]} (30. O-O $17) 30... Ne5 $2 {[%emt 0:05:18]} ({Black should play} 30... Nc5 $1 $19 {[%cal Rc5d3]} 31. Qc4 Nd3+ 32. Kf1 Ng4) 31. Qxe5 $11 {[%emt 0:00:06]} Qxe5 {[%emt 0:00:03]} 32. Bxe5 {[%emt 0:00:07]} Rxe5 {[%emt 0:00:04]} 33. Ke2 {[%emt 0:01:23]} g6 {[%emt 0:02:39]} 34. Rac1 {[%emt 0:04:34]} Rd7 {[%emt 0:02:22]} 35. Rgd1 {[%emt 0:02:20]} Rxd1 {[%emt 0:00:15]} 36. Kxd1 {[%emt 0:00:26]} gxf5 {[%emt 0:00:52]} 37. Rc7 {[%emt 0:00:30]} a5 {[%emt 0:03:22]} 38. Rc6 {[%emt 0:02:26]} Re6 {[%emt 0:02:16]} 39. Rc8+ {[%emt 0:00:29]} Kh7 {[%emt 0:00:05]} 40. bxa5 {[%emt 0:01:04]} bxa5 {[%emt 0:00:09]} 41. Rc5 {[%emt 0:01:20]} Rd6+ {[%emt 0:01:15]} 42. Kc2 {[%emt 0:00:51]} Rd5 {[%emt 0:03:24]} 43. Rxd5 {[%emt 0:01:55]} Nxd5 {[%emt 0:00:01]} 44. Nxh5 {[%emt 0:02:45]} (44. Kb3 $14) 44... Kg6 $11 {[%emt 0:00:07]} 45. Ng3 {[%emt 0:00:00]} Kf6 {[%emt 0:01:11]} (45... Nf6 $11) 46. Kb3 $1 $14 {[%emt 0:00:11]} Ke5 $2 {[%emt 0:01:59][%mdl 8192] [#]} (46... Nb6 $16 {is more resistant.}) 47. h5 $1 $18 {[%emt 0:00:51]} Nf6 {[%emt 0:03:51]} ({But not} 47... f4 $2 48. h6 Kf6 (48... fxg3 $2 {too greedy.} 49. h7 $18) 49. Nxe4+ Kg6 50. exf4 $18 (50. Kc4 fxe3 51. h7 Kg7 $16)) (47... Nb6 $142 48. h6 Kf6 49. Nxf5 Kg6 (49... Kxf5 $2 50. h7 $18)) 48. h6 $18 {[%emt 0:00:17]} f4 {[%emt 0:00:44]} 49. exf4+ {[%emt 0:02:22]} Kd4 {[%emt 0:00:01]} 50. Ka4 {[%emt 0:00:24]} Kd3 {[%emt 0:00:05]} 51. Kxa5 {[%emt 0:00:08]} e3 {[%emt 0:00:06]} 52. fxe3 {[%emt 0:00:08]} Kxe3 {[%emt 0:00:03]} 53. Nh5 {[%emt 0:00:21]} Nh7 {[%emt 0:00:03]} 54. Kb6 {[%emt 0:00:16]} Kf3 {[%emt 0:00:01]} 55. a4 {[%emt 0:00:19]} Kg4 {[%emt 0:00:03]} 56. a5 {[%emt 0:00:50]} 1-0

[Event "EYCC O18-ch 2024"]
[Site "Prague"]
[Date "2024.08.26"]
[Round "5.7"]
[White "Backiel, Hubert"]
[Black "Serrano Almendros, Angel"]
[Result "1-0"]
[ECO "D31"]
[WhiteElo "2216"]
[BlackElo "2310"]
[Annotator "RC"]
[PlyCount "43"]
[EventDate "2024.08.19"]
[EventType "swiss"]
[EventCountry "CZE"]
[SourceTitle "playchess.com"]
[Source "ChessBase"]
[SourceQuality "1"]
[TimeControl "5400+30"]

1. d4 d5 2. c4 e6 3. Nc3 Bb4 4. cxd5 exd5 5. Bf4 Nf6 6. e3 Ne4 7. Qb3 c5 8. f3 Nxc3 9. bxc3 Ba5 10. Bb5+ Nc6 11. Ne2 O-O 12. dxc5 Ne7 13. O-O Bc7 14. Rfd1 a6 15. Ba4 Rb8 16. c4 Bxf4 17. Nxf4 dxc4 18. Rxd8 cxb3 19. Rad1 g5 20. Nh5 Nf5 21. Rxf8+ Kxf8 22. Rd8+ 1-0

[Event "EYCC O18-ch 2024"]
[Site "Prague"]
[Date "2024.08.26"]
[Round "5.8"]
[White "Rozen, Eytan"]
[Black "Eilenberg, Jonas"]
[Result "1-0"]
[ECO "D11"]
[WhiteElo "2478"]
[BlackElo "2285"]
[Annotator "TA"]
[PlyCount "49"]
[EventDate "2024.08.19"]
[EventType "swiss"]
[EventCountry "CZE"]
[SourceTitle "playchess.com"]
[Source "ChessBase"]
[SourceQuality "1"]
[TimeControl "5400+30"]

{[%evp 18,48,24,-20,-4,-29,-30,-25,-31,-37,-24,-37,-20,-22,2,-16,8,0,0,11,23,16,59,29,325,320,314,314,2239,468,3198,3084,29999]} 1. d4 {[%emt 0:00:05]} d5 {[%emt 0:00:07]} 2. c4 {[%emt 0:00:03]} c6 {[%emt 0:00:05]} 3. Nf3 {[%emt 0:00:47]} Nf6 {[%emt 0:00:07]} 4. Qc2 {[%emt 0:02:21]} dxc4 {[%emt 0:00:08]} 5. Qxc4 {[%emt 0:00:46]} Bf5 {[%emt 0:00:07]} 6. g3 {[%emt 0:00:06]} e6 {[%emt 0:00:08]} 7. Bg2 {[%emt 0:00:06]} Be7 {[%emt 0:00:16]} 8. O-O {[%emt 0:00:07]} O-O {[%emt 0:00:06]} 9. Nc3 {[%emt 0:00:30]} Nbd7 {[%emt 0:00:31]} 10. Qb3 {[%emt 0:00:25]} Qb6 $1 {[%emt 0:01:24]} 11. Bg5 {[%emt 0:01:53][%cal Oe2e4]} h6 {[%emt 0:03:37]} 12. Bxf6 {[%emt 0:00:06]} Nxf6 {[%emt 0:00:18] Black has an edge.} 13. e3 {[%emt 0:02:40]} Rfd8 {[%emt 0:02:47]} 14. Rfc1 {[%emt 0:01:29]} Bh7 {[%emt 0:04:43]} 15. Ne5 {[%emt 0:04:33]} Nd7 {[%emt 0:09:01]} 16. Nc4 {[%emt 0:06:28] A dynamic duo of knights.} Qa6 {[%emt 0:11:04]} 17. Ne4 {[%emt 0:10:01]} Nb6 {[%emt 0:06:17]} 18. Ne5 {[%emt 0:15:24]} Bxe4 {[%emt 0:06:30]} 19. Bxe4 {[%emt 0:00:15]} Qa4 {[%emt 0:00:48]} 20. Qd3 {[%emt 0:13:57]} (20. Qxa4 {simplifies} Nxa4 21. b4 Bxb4 22. Rc4) 20... Nd7 $2 {[%emt 0:11:07][%mdl 8192] [#] Black cannot hold the game after this.} (20... Bf6 $11 {and Black has nothing to worry.} 21. Ng4 Bxd4 22. exd4 Rxd4) 21. Bh7+ $1 $18 {[%emt 0:06:22]} Kf8 {[%emt 0:00:09] [#] ...Nxe5 would now be deadly.} 22. Nxf7 {[%emt 0:00:06]} Kxf7 $2 {[%emt 0:00:04]} (22... Nf6) 23. Qg6+ {[%emt 0:00:05]} Kf8 {[%emt 0:00:04] And now ...Nf6 would win.} 24. Qxe6 {[%emt 0:00:04][%csl Gh7][%cal Re6g8]} Qb5 {[%emt 0:01:31]} 25. Qg8# {[%emt 0:00:02] Weighted Error Value: White=0.09 (flawless) /Black=0.85.  Loses game:     	---       	Black=1      Mistake:       	---       	Black=1      Inaccurate:     	White=1     	Black=3      OK:         	White=4     	---        Best:        	White=1     	Black=1      Strong:       	White=1     	---} 1-0

[Event "EYCC O18-ch 2024"]
[Site "Prague"]
[Date "2024.08.26"]
[Round "5.8"]
[White "Farokhi, Keyvan"]
[Black "Ribeiro, Gustavo"]
[Result "1/2-1/2"]
[ECO "A46"]
[WhiteElo "2307"]
[BlackElo "2183"]
[Annotator "RC"]
[PlyCount "119"]
[EventDate "2024.08.19"]
[EventType "swiss"]
[EventCountry "CZE"]
[SourceTitle "playchess.com"]
[Source "ChessBase"]
[SourceQuality "1"]
[TimeControl "5400+30"]

1. d4 {[%emt 0:00:06]} Nf6 {[%emt 0:00:20]} 2. Nf3 {[%emt 0:00:06]} e6 {[%emt 0:00:13]} 3. Bg5 {[%emt 0:00:14]} d5 {[%emt 0:00:53]} 4. e3 {[%emt 0:00:27]} h6 {[%emt 0:00:11]} 5. Bh4 {[%emt 0:00:55]} c5 {[%emt 0:00:21]} 6. c3 {[%emt 0:00:18]} Nc6 {[%emt 0:01:40]} 7. Nbd2 {[%emt 0:00:52]} Qb6 {[%emt 0:01:02]} 8. Qc2 {[%emt 0:00:44]} Bd7 {[%emt 0:00:35]} 9. Rc1 {[%emt 0:20:41]} cxd4 {[%emt 0:05:39]} 10. exd4 {[%emt 0:00:07]} Rc8 {[%emt 0:00:04]} 11. Qb1 {[%emt 0:01:11]} Ne4 {[%emt 0:02:24]} 12. Nxe4 {[%emt 0:03:18]} dxe4 {[%emt 0:01:48]} 13. Nd2 {[%emt 0:00:13]} f5 {[%emt 0:00:06]} 14. Bg3 {[%emt 0:00:54]} Qd8 {[%emt 0:08:56]} 15. f3 {[%emt 0:05:54]} Be7 {[%emt 0:15:13]} 16. fxe4 {[%emt 0:03:48]} Bg5 {[%emt 0:01:09]} 17. Rd1 {[%emt 0:02:05]} O-O {[%emt 0:00:23]} 18. Bd3 {[%emt 0:07:26]} Bxd2+ {[%emt 0:01:06]} 19. Rxd2 {[%emt 0:00:24]} Qg5 {[%emt 0:00:10]} 20. Bd6 {[%emt 0:10:14]} fxe4 {[%emt 0:09:37]} 21. Bxf8 {[%emt 0:03:00]} exd3 {[%emt 0:00:05]} 22. Bd6 {[%emt 0:01:01]} Na5 {[%emt 0:00:09]} 23. Qxd3 {[%emt 0:04:45]} Nc4 {[%emt 0:00:14]} 24. Bg3 {[%emt 0:01:01]} Nxd2 {[%emt 0:00:06]} 25. Qxd2 {[%emt 0:00:04]} Qf5 {[%emt 0:00:17]} 26. Rf1 {[%emt 0:04:49]} Qe4+ {[%emt 0:04:43]} 27. Kf2 {[%emt 0:11:26]} Rf8+ {[%emt 0:01:22]} 28. Kg1 {[%emt 0:01:15]} Rxf1+ {[%emt 0:00:26]} 29. Kxf1 {[%emt 0:00:01]} Qb1+ {[%emt 0:00:40]} 30. Kf2 {[%emt 0:00:07]} Qxa2 {[%emt 0:00:09]} 31. Be5 {[%emt 0:00:14]} Qb1 {[%emt 0:00:11]} 32. h3 {[%emt 0:01:09]} Bc6 {[%emt 0:00:31]} 33. Kg3 {[%emt 0:01:15]} b5 {[%emt 0:01:19]} 34. Kh2 {[%emt 0:02:17]} Qf1 {[%emt 0:00:42]} 35. Qc2 {[%emt 0:02:05]} Kf7 {[%emt 0:00:15]} 36. b3 {[%emt 0:00:48]} Bd5 {[%emt 0:05:14]} 37. c4 {[%emt 0:00:44]} bxc4 {[%emt 0:02:05]} 38. bxc4 {[%emt 0:00:02]} Bc6 {[%emt 0:00:13]} 39. d5 {[%emt 0:02:28]} exd5 {[%emt 0:00:12]} 40. cxd5 {[%emt 0:01:19]} Bxd5 {[%emt 0:01:25]} 41. Qc7+ {[%emt 0:00:09]} Ke8 {[%emt 0:00:38]} 42. Qxg7 {[%emt 0:00:17]} Qf5 {[%emt 0:01:07]} 43. Bd6 {[%emt 0:01:31]} Qe4 {[%emt 0:00:15]} 44. Bc5 {[%emt 0:04:16]} a5 {[%emt 0:01:05]} 45. Qf8+ {[%emt 0:01:35]} Kd7 {[%emt 0:00:06]} 46. Qd6+ {[%emt 0:00:08]} Ke8 {[%emt 0:00:03]} 47. Qb8+ {[%emt 0:00:32]} Kd7 {[%emt 0:00:24]} 48. Qg3 {[%emt 0:00:44]} a4 {[%emt 0:00:11]} 49. Ba3 {[%emt 0:00:20]} Kc6 {[%emt 0:01:48]} 50. Bf8 {[%emt 0:01:17]} h5 {[%emt 0:00:12]} 51. Ba3 {[%emt 0:01:04]} Kb5 {[%emt 0:00:23]} 52. Qb8+ {[%emt 0:01:35]} Bb7 {[%emt 0:00:10]} 53. Qg3 {[%emt 0:00:14]} Bd5 {[%emt 0:00:04]} 54. Bd6 {[%emt 0:00:26]} Kc6 {[%emt 0:00:13]} 55. Bf8 {[%emt 0:00:45]} Kb5 {[%emt 0:00:26]} 56. Qg5 {[%emt 0:00:38]} Kc6 {[%emt 0:00:33]} 57. Qc1+ {[%emt 0:00:33]} Kd7 {[%emt 0:00:12]} 58. Qd2 {[%emt 0:01:15]} Qe5+ {[%emt 0:00:21]} 59. Kg1 {[%emt 0:00:12]} Qa1+ {[%emt 0:00:53]} 60. Kh2 {[%emt 0:00:42]} 1/2-1/2

[Event "EYCC O18-ch 2024"]
[Site "Prague"]
[Date "2024.08.26"]
[Round "5.9"]
[White "Sahakyan, Aleks"]
[Black "Chyzy, Jakub"]
[Result "1-0"]
[ECO "C72"]
[WhiteElo "2287"]
[BlackElo "2368"]
[Annotator "RC"]
[PlyCount "72"]
[EventDate "2024.08.19"]
[EventType "swiss"]
[EventCountry "CZE"]
[SourceTitle "playchess.com"]
[Source "ChessBase"]
[SourceQuality "1"]
[TimeControl "5400+30"]

1. e4 {[%emt 0:00:02]} e5 {[%emt 0:02:25]} 2. Nf3 {[%emt 0:00:03]} Nc6 {[%emt 0:00:06]} 3. Bb5 {[%emt 0:00:04]} a6 {[%emt 0:00:04]} 4. Ba4 {[%emt 0:00:05]} d6 {[%emt 0:00:04]} 5. O-O {[%emt 0:00:13]} Bd7 {[%emt 0:00:11]} 6. d4 {[%emt 0:00:10]} exd4 {[%emt 0:29:45]} 7. Nxd4 {[%emt 0:00:33]} Nxd4 {[%emt 0:00:06]} 8. Bxd7+ {[%emt 0:00:03]} Qxd7 {[%emt 0:00:04]} 9. Qxd4 {[%emt 0:00:05]} Ne7 {[%emt 0:00:23]} 10. b3 {[%emt 0:15:08]} Nc6 {[%emt 0:09:01]} 11. Qe3 {[%emt 0:01:25]} O-O-O {[%emt 0:00:16]} 12. Bb2 {[%emt 0:00:21]} d5 {[%emt 0:15:14]} 13. exd5 {[%emt 0:05:50]} Qxd5 {[%emt 0:01:43]} 14. Nc3 {[%emt 0:01:41]} Qh5 {[%emt 0:02:37]} 15. Ne4 {[%emt 0:03:55]} Bd6 {[%emt 0:00:57]} 16. h3 {[%emt 0:03:15]} Be5 {[%emt 0:20:35]} 17. Ng3 {[%emt 0:04:09]} Bxg3 {[%emt 0:00:33]} 18. Qxg3 {[%emt 0:00:08]} Rhe8 {[%emt 0:02:08]} 19. Rae1 {[%emt 0:02:43]} g6 {[%emt 0:01:03]} 20. Kh2 {[%emt 0:03:23]} Qf5 {[%emt 0:01:17]} 21. c4 {[%emt 0:04:43]} Rxe1 {[%emt 0:02:24]} 22. Rxe1 {[%emt 0:00:02]} Rd2 {[%emt 0:00:10]} 23. Bc1 {[%emt 0:14:25]} Rxf2 {[%emt 0:00:27]} 24. Re8+ {[%emt 0:02:56]} Kd7 {[%emt 0:00:41]} 25. Re3 {[%emt 0:03:34]} Rf1 {[%emt 0:04:00]} 26. Bd2 {[%emt 0:03:10]} Qf2 {[%emt 0:02:18]} 27. Rd3+ {[%emt 0:00:55]} Kc8 {[%emt 0:00:15]} 28. Qg5 {[%emt 0:00:49]} Qg1+ {[%emt 0:04:47]} 29. Kg3 {[%emt 0:00:00]} Qf2+ {[%emt 0:00:04]} 30. Kh2 {[%emt 0:00:02]} Qg1+ {[%emt 0:01:19]} 31. Kg3 {[%emt 0:00:01]} Nd4 {[%emt 0:00:20]} 32. Qd5 {[%emt 0:03:19]} Qf2+ {[%emt 0:00:08]} 33. Kh2 {[%emt 0:00:01]} Qg1+ {[%emt 0:00:09]} 34. Kg3 {[%emt 0:00:01]} Nf5+ {[%emt 0:00:17]} 35. Kg4 {[%emt 0:00:02]} Nd6 {[%emt 0:01:33]} 36. Be3 {[%emt 0:02:42]} Qh2 1-0

[Event "EYCC O18-ch 2024"]
[Site "Prague"]
[Date "2024.08.26"]
[Round "5.9"]
[White "Kusiak, Mateusz"]
[Black "Borrmann, Laurenz"]
[Result "1-0"]
[ECO "C48"]
[WhiteElo "1887"]
[BlackElo "2427"]
[Annotator "RC"]
[PlyCount "83"]
[EventDate "2024.08.19"]
[EventType "swiss"]
[EventCountry "CZE"]
[SourceTitle "playchess.com"]
[Source "ChessBase"]
[SourceQuality "1"]
[TimeControl "5400+30"]

1. e4 {[%emt 0:02:38]} e5 {[%emt 0:00:08]} 2. Nf3 {[%emt 0:00:10]} Nc6 {[%emt 0:00:06]} 3. Nc3 {[%emt 0:00:14]} Nf6 {[%emt 0:01:20]} 4. Bb5 {[%emt 0:00:05]} Bd6 {[%emt 0:01:22]} 5. d3 {[%emt 0:00:09]} h6 {[%emt 0:00:52]} 6. a3 {[%emt 0:04:06]} a6 {[%emt 0:07:38]} 7. Bc4 {[%emt 0:00:50]} Bc5 {[%emt 0:01:28]} 8. Ne2 {[%emt 0:10:45]} O-O {[%emt 0:13:00]} 9. O-O {[%emt 0:01:48]} Re8 {[%emt 0:02:38]} 10. Ng3 {[%emt 0:16:36]} Bf8 {[%emt 0:03:30]} 11. d4 {[%emt 0:03:24]} d6 {[%emt 0:05:06]} 12. h3 {[%emt 0:04:04]} Nxd4 {[%emt 0:04:43]} 13. Nxd4 {[%emt 0:00:07]} exd4 {[%emt 0:00:08]} 14. Qxd4 {[%emt 0:00:08]} b5 {[%emt 0:01:55]} 15. Be2 {[%emt 0:01:21]} Bb7 {[%emt 0:01:47]} 16. Bf3 {[%emt 0:02:20]} Nd7 {[%emt 0:06:46]} 17. b3 {[%emt 0:00:59]} c5 {[%emt 0:07:48]} 18. Qd2 {[%emt 0:01:53]} Ne5 {[%emt 0:02:03]} 19. Be2 {[%emt 0:01:57]} Qh4 {[%emt 0:02:29]} 20. Kh2 {[%emt 0:13:17]} Bxe4 {[%emt 0:09:14]} 21. f4 {[%emt 0:01:33]} Ng6 {[%emt 0:00:46]} 22. Nxe4 {[%emt 0:00:49]} Rxe4 {[%emt 0:00:07]} 23. Bf3 {[%emt 0:00:50]} Rd4 {[%emt 0:00:28]} 24. Qe1 {[%emt 0:13:32]} Ra7 {[%emt 0:03:39]} 25. Be3 {[%emt 0:00:38]} Qf6 {[%emt 0:00:57]} 26. g3 {[%emt 0:01:38]} Re7 {[%emt 0:01:47]} 27. Qf2 {[%emt 0:00:19]} Rde4 {[%emt 0:00:57]} 28. Bxe4 {[%emt 0:00:12]} Rxe4 {[%emt 0:00:04]} 29. Rfe1 {[%emt 0:01:29]} h5 {[%emt 0:04:46]} 30. Qf3 {[%emt 0:05:20]} d5 {[%emt 0:00:43]} 31. Bf2 {[%emt 0:05:06]} h4 {[%emt 0:00:28]} 32. Rad1 {[%emt 0:01:34]} hxg3+ {[%emt 0:01:49]} 33. Bxg3 {[%emt 0:00:01]} Rxf4 {[%emt 0:01:38]} 34. Bxf4 {[%emt 0:00:12]} Nxf4 {[%emt 0:00:04]} 35. Re8 {[%emt 0:00:41]} g5 {[%emt 0:01:21]} 36. Rg1 {[%emt 0:00:21]} Kg7 {[%emt 0:00:35]} 37. h4 {[%emt 0:01:37]} Bd6 {[%emt 0:00:53]} 38. Kh1 {[%emt 0:00:03]} Kh7 {[%emt 0:00:33]} 39. Rxg5 {[%emt 0:01:27]} Qa1+ {[%emt 0:00:07]} 40. Rg1 {[%emt 0:00:06]} Qf6 {[%emt 0:00:06]} 41. Qg4 {[%emt 0:00:13]} Ng6 {[%emt 0:00:13]} 42. Qh5+ {[%emt 0:00:15]} 1-0